bitfinex/quotes_BTCUSD_20241205
["timestamp","ask_amount","ask_price","bid_price","bid_amount"]
[1733440671285,0.00059896,96507.0,96474.0,0.00103642]
[1733440671506,0.13789858,96560.0,96474.0,0.00103642]
[1733440671507,0.00059896,96503.0,96491.0,0.10503154]
[1733440671699,0.00059896,96503.0,96492.0,0.00103616]
[1733440671876,0.00059896,96503.0,96493.0,0.10606769]
[1733440672072,0.00059896,96503.0,96494.0,0.076]
[1733440672285,0.00059896,96503.0,96495.0,0.1060677]
[1733440672506,0.00103578,96553.0,96495.0,0.1060677]
[1733440672747,0.10503154,96546.0,96495.0,0.1060677]
[1733440672930,0.00103578,96545.0,96495.0,0.1060677]
[1733440673147,0.00059896,96559.0,96520.0,0.00314963]
[1733440673414,0.00059896,96559.0,96522.0,0.076]
[1733440673653,0.00059896,96585.0,96523.0,0.10606725]
[1733440673902,0.00103578,96584.0,96524.0,0.05166011]
[1733440674126,0.00103578,96584.0,96523.0,0.10606725]
[1733440674127,0.00103578,96584.0,96525.0,0.00103571]
[1733440674240,0.10503154,96583.0,96525.0,0.10606725]
[1733440674647,0.00103578,96582.0,96525.0,0.10606725]
[1733440674886,0.10503154,96581.0,96525.0,0.10606725]
[1733440675062,0.00103578,96580.0,96525.0,0.10606725]
[1733440675272,0.10503154,96579.0,96525.0,0.10606725]
[1733440675410,0.00103578,96578.0,96525.0,0.10606725]
[1733440675628,0.10503154,96577.0,96525.0,0.10606725]
[1733440675847,0.00103578,96576.0,96526.0,0.0514881]
[1733440676049,0.10503154,96575.0,96528.0,0.05113417]
[1733440676277,0.00103578,96574.0,96551.0,0.00307744]
[1733440676615,0.00059896,96578.0,96551.0,0.10810898]
[1733440676750,0.0008604,96590.0,96551.0,0.10810898]
[1733440676751,0.00103578,96588.0,96551.0,0.10810898]
[1733440676985,0.10503154,96587.0,96552.0,0.07703556]
[1733440677174,0.00103578,96586.0,96552.0,0.07703556]
[1733440677549,0.10503154,96585.0,96552.0,0.07703556]
[1733440677719,0.0008604,96590.0,96552.0,0.07703556]
[1733440677720,0.0008604,96590.0,96553.0,0.10503154]
[1733440677928,0.0008604,96590.0,96554.0,0.00103548]
[1733440678106,0.0008604,96590.0,96555.0,0.10606696]
[1733440679443,0.0008604,96590.0,96555.0,0.11406696]
[1733440679645,0.0008604,96590.0,96555.0,0.10606696]
[1733440679757,0.0008604,96590.0,96555.0,0.10706696]
[1733440679975,0.10503154,96589.0,96556.0,0.00103543]
[1733440680256,0.00103578,96588.0,96557.0,0.10503154]
[1733440680393,0.10606732,96588.0,96557.0,0.10503154]
[1733440680592,0.00103578,96588.0,96557.0,0.10606702]
[1733440680795,0.10503154,96588.0,96557.0,0.10503154]
[1733440680999,0.00103578,96587.0,96577.0,0.00308177]
[1733440681362,0.0008604,96590.0,96577.0,0.00308177]
[1733440682845,0.0008604,96590.0,96579.0,0.076]
[1733440683062,0.0008604,96590.0,96580.0,0.10606677]
[1733440683477,0.0008604,96590.0,96581.0,0.0454]
[1733440683646,0.0008604,96590.0,96579.0,0.076]
[1733440684238,0.00024044,96629.0,96577.0,0.00308177]
[1733440684239,0.00024044,96629.0,96619.0,0.15]
[1733440684446,0.00024044,96629.0,96628.0,0.10503154]
[1733440684811,0.0073245,96633.0,96628.0,0.10503154]
[1733440684812,0.0073245,96633.0,96630.0,0.05185758]
[1733440684978,0.0073245,96633.0,96624.0,0.458665]
[1733440684979,0.00191016,96633.0,96632.0,0.10503154]
[1733440685229,0.00191016,96633.0,96632.0,0.15672822]
[1733440685429,0.15,96672.0,96632.0,0.10503154]
[1733440685625,0.15,96660.0,96630.0,0.0454]
[1733440685872,0.0008617,96690.0,96632.0,0.00316227]
[1733440685873,0.15,96644.0,96632.0,0.00316227]
[1733440686083,0.00103452,96643.0,96632.0,0.00316227]
[1733440686276,0.15,96677.0,96633.0,0.15043154]
[1733440686509,0.15,96681.0,96636.0,0.10503154]
[1733440686714,0.15,96676.0,96637.0,0.00103447]
[1733440686888,0.15,96676.0,96638.0,0.10606603]
[1733440686889,0.00103452,96675.0,96638.0,0.10606603]
[1733440687507,0.15103452,96682.0,96638.0,0.10606603]
[1733440687656,0.0008609,96640.0,96638.0,0.10606603]
[1733440687866,0.0008617,96690.0,96639.0,0.10503154]
[1733440688073,0.0008617,96690.0,96649.0,0.10503154]
[1733440688566,0.0008617,96690.0,96658.0,0.076]
[1733440688704,0.0008617,96690.0,96671.0,0.10503154]
[1733440688828,0.0008617,96690.0,96659.0,0.00103411]
[1733440688829,0.00103452,96719.0,96672.0,0.10606554]
[1733440689045,0.00103452,96719.0,96685.0,0.10503154]
[1733440689248,0.09149409,96779.0,96673.0,0.20304882]
[1733440689249,0.00103452,96733.0,96689.0,0.10817]
[1733440689449,0.15,96741.0,96697.0,0.10503154]
[1733440689666,0.00135316,96743.0,96698.0,0.0315805]
[1733440689667,0.00189662,96740.0,96698.0,0.0315805]
[1733440689856,0.0008621,96740.0,96698.0,0.13661204]
[1733440690057,0.0008621,96740.0,96703.0,0.10503154]
[1733440690256,0.0008621,96740.0,96704.0,0.03158044]
[1733440690507,0.0008621,96740.0,96705.0,0.10503154]
[1733440690846,0.0008621,96740.0,96706.0,0.02962253]
[1733440691062,0.0008621,96740.0,96718.0,0.00312732]
[1733440691262,0.0008621,96740.0,96721.0,0.10503154]
[1733440691377,0.15,96789.0,96739.0,0.10503154]
[1733440691601,0.15,96790.0,96741.0,0.10503154]
[1733440691798,0.00103452,96776.0,96742.0,0.03452405]
[1733440692002,0.0807,96809.0,96743.0,0.10503154]
[1733440692003,0.15,96787.0,96743.0,0.10503154]
[1733440692259,0.00103452,96776.0,96744.0,0.0010333]
[1733440692583,0.15,96775.0,96745.0,0.10503154]
[1733440692789,0.0259395,96777.0,96770.0,0.00316847]
[1733440693225,0.0259395,96777.0,96775.0,0.75]
[1733440694133,0.25503154,96776.0,96775.0,0.75]
[1733440695035,0.30612864,96776.0,96775.0,0.36378941]
[1733440695213,0.023,96775.0,96768.0,0.75]
[1733440695350,0.10503154,96769.0,96768.0,0.75]
[1733440695554,0.27803154,96769.0,96768.0,0.75]
[1733440695954,0.0259395,96777.0,96768.0,0.75]
[1733440695955,0.15,96774.0,96768.0,0.75]
[1733440696156,0.15,96772.0,96768.0,0.75]
[1733440696364,0.00103452,96771.0,96768.0,0.75]
[1733440696989,0.15,96769.0,96768.0,0.75]
[1733440697198,0.0259395,96777.0,96739.0,0.0468]
[1733440697400,0.003,96775.0,96768.0,0.001]
[1733440697617,0.003,96775.0,96740.0,0.10606492]
[1733440697618,0.00403452,96775.0,96740.0,0.09706492]
[1733440698003,0.00129173,96775.0,96740.0,0.09706492]
[1733440698148,0.0259395,96777.0,96741.0,0.0763]
[1733440698347,0.0259395,96777.0,96768.0,0.001]
[1733440698763,0.0259395,96777.0,96763.0,0.00302653]
[1733440698764,0.10632313,96776.0,96763.0,0.00302653]
[1733440699076,0.00129159,96776.0,96763.0,0.00302653]
[1733440699287,0.0259395,96777.0,96763.0,0.00302653]
[1733440699654,0.00129168,96776.0,96763.0,0.00302653]
[1733440700824,0.00129168,96776.0,96763.0,0.00402653]
[1733440701030,0.00129175,96775.0,96763.0,0.00402653]
[1733440701239,0.0259395,96777.0,96763.0,0.00402653]
[1733440701240,0.00129175,96776.0,96763.0,0.00302653]
[1733440701442,0.10503154,96775.0,96763.0,0.00302653]
[1733440701675,0.00129175,96774.0,96763.0,0.00302653]
[1733440702058,0.25503154,96773.0,96741.0,0.0763]
[1733440702273,0.00129183,96772.0,96741.0,0.18133154]
[1733440702520,0.10503154,96771.0,96741.0,0.18133154]
[1733440702634,0.00129183,96770.0,96741.0,0.18133154]
[1733440702833,0.00125183,96770.0,96741.0,0.18133154]
[1733440703305,0.00125183,96770.0,96742.0,0.00055575]
[1733440703523,0.001,96776.0,96742.0,0.10558729]
[1733440703919,0.001,96776.0,96761.0,0.00312569]
[1733440704171,0.001,96776.0,96762.0,0.00055548]
[1733440704442,0.0259395,96777.0,96762.0,0.00055548]
[1733440704662,0.0259395,96777.0,96761.0,0.00292569]
[1733440704870,0.00129166,96776.0,96761.0,0.00292569]
[1733440705479,0.0259395,96777.0,96762.0,0.001]
[1733440705669,0.0259395,96777.0,96763.0,0.00055528]
[1733440705819,0.0259395,96777.0,96764.0,0.0485]
[1733440706020,0.0259395,96777.0,96765.0,0.10503154]
[1733440706439,0.0259395,96777.0,96764.0,0.0485]
[1733440706842,0.00129161,96776.0,96764.0,0.0485]
[1733440707068,0.0259395,96777.0,96764.0,0.0485]
[1733440707368,0.00129168,96776.0,96764.0,0.0485]
[1733440708032,0.00129168,96776.0,96761.0,0.00292569]
[1733440708772,0.00329168,96776.0,96761.0,0.00292569]
[1733440709206,0.00129168,96776.0,96762.0,0.10503154]
[1733440709416,0.15,96773.0,96761.0,0.001]
[1733440709665,0.15,96762.0,96761.0,0.001]
[1733440709863,0.0259395,96777.0,96761.0,0.001]
[1733440709864,0.15,96766.0,96761.0,0.001]
[1733440710079,0.10503154,96776.0,96761.0,0.001]
[1733440710293,0.00129177,96775.0,96761.0,0.001]
[1733440710551,0.25632334,96774.0,96761.0,0.001]
[1733440710923,0.0259395,96777.0,96761.0,0.001]
[1733440710924,0.15,96762.0,96761.0,0.001]
[1733440711150,0.25503154,96762.0,96761.0,0.001]
[1733440711388,0.0632,96741.0,96722.0,0.0817]
[1733440711619,0.16823154,96741.0,96701.0,0.0791]
[1733440711992,0.19123154,96741.0,96701.0,0.0791]
[1733440712342,0.0632,96705.0,96683.0,0.0791]
[1733440712507,0.0632,96684.0,96662.0,0.0791]
[1733440712703,0.109,96735.0,96662.0,0.0791]
[1733440712704,0.0632,96693.0,96664.0,0.00311126]
[1733440712849,0.10632443,96692.0,96665.0,0.00055789]
[1733440713260,0.00129289,96691.0,96665.0,0.00055789]
[1733440713693,0.0632,96693.0,96665.0,0.00055789]
[1733440713846,0.10632443,96692.0,96665.0,0.00055789]
[1733440714287,0.0632,96704.0,96666.0,0.10503154]
[1733440714465,0.10632429,96703.0,96667.0,0.0005576]
[1733440714669,0.10632429,96703.0,96668.0,0.10558914]
[1733440714881,0.004,96741.0,96668.0,0.10558914]
[1733440714882,0.00129275,96739.0,96682.0,0.10503154]
[1733440715136,0.0632,96753.0,96695.0,0.0493]
[1733440715350,0.0632,96757.0,96705.0,0.10503154]
[1733440715580,0.10632358,96756.0,96706.0,0.00055618]
[1733440715817,0.10632358,96756.0,96699.0,0.0868]
[1733440715818,0.10503154,96756.0,96707.0,0.47269664]
[1733440715980,0.00129184,96771.0,96727.0,0.1284]
[1733440716166,0.10632338,96770.0,96728.0,0.10558734]
[1733440716378,0.0632,96762.0,96728.0,0.10558734]
[1733440716594,0.10632351,96761.0,96728.0,0.10558734]
[1733440716794,0.0259395,96777.0,96730.0,0.10503154]
[1733440717053,0.0632,96772.0,96744.0,0.00310415]
[1733440717255,0.0632,96765.0,96744.0,0.00310415]
[1733440717387,0.0632,96761.0,96731.0,0.00055553]
[1733440717590,0.00129193,96776.0,96743.0,0.00310693]
[1733440717796,0.10632347,96776.0,96744.0,0.10558707]
[1733440718219,0.0259395,96777.0,96745.0,0.23343154]
[1733440718417,0.0259395,96777.0,96756.0,0.10503154]
[1733440718616,0.0259395,96777.0,96758.0,0.0493]
[1733440718864,0.0259395,96777.0,96759.0,0.10558662]
[1733440720025,0.0259395,96777.0,96759.0,0.10658662]
[1733440720237,0.0259395,96777.0,96759.0,0.001]
[1733440720441,0.0259395,96777.0,96760.0,0.00055528]
[1733440721040,0.0259395,96777.0,96768.0,0.00304543]
[1733440721386,0.0259395,96777.0,96764.0,0.1]
[1733440721899,0.0259395,96777.0,96766.0,0.00308962]
[1733440722532,0.0259395,96777.0,96770.0,0.10503154]
[1733440722826,0.0259395,96777.0,96771.0,0.00055507]
[1733440722979,0.0259395,96777.0,96770.0,0.10503154]
[1733440723213,0.0259395,96777.0,96771.0,0.10558667]
[1733440723392,0.0259395,96777.0,96771.0,0.00055513]
[1733440723592,0.0259395,96777.0,96772.0,0.10503154]
[1733440723807,0.0259395,96777.0,96773.0,0.00055483]
[1733440724013,0.0259395,96777.0,96774.0,0.10503154]
[1733440724195,0.0259395,96777.0,96775.0,0.00055502]
[1733440724378,0.0259395,96777.0,96776.0,0.10503154]
[1733440725616,0.0259395,96777.0,96768.0,0.00055484]
[1733440725826,0.0259395,96777.0,96769.0,0.10558654]
[1733440726054,0.0259395,96777.0,96776.0,0.001]
[1733440726292,0.0259395,96777.0,96776.0,0.10658655]
[1733440726489,0.0259395,96777.0,96776.0,0.10558655]
[1733440727127,0.0259395,96777.0,96768.0,0.00155472]
[1733440727339,0.0259395,96777.0,96769.0,0.10503154]
[1733440727707,0.0259395,96777.0,96768.0,0.001]
[1733440728117,0.0259395,96777.0,96760.0,0.00305802]
[1733440728374,0.13097104,96777.0,96760.0,0.00305802]
[1733440728523,0.06449174,96776.0,96760.0,0.00305802]
[1733440729173,0.0632,96768.0,96737.0,0.0775]
[1733440729387,0.0632,96765.0,96750.0,0.0030883]
[1733440729562,0.0632,96765.0,96737.0,0.0775]
[1733440729563,0.16823154,96765.0,96737.0,0.0775]
[1733440729765,0.16823154,96765.0,96764.0,0.101]
[1733440731197,0.16823154,96765.0,96764.0,0.1]
[1733440731433,0.16823154,96765.0,96764.0,0.101]
[1733440732053,0.16823154,96765.0,96764.0,0.1]
[1733440732224,0.17123154,96765.0,96764.0,0.1]
[1733440732425,0.003,96765.0,96764.0,0.1]
[1733440732876,0.0259395,96777.0,96764.0,0.21498962]
[1733440733100,0.0229395,96777.0,96765.0,0.23228666]
[1733440733310,0.00759445,96777.0,96766.0,0.000555]
[1733440733594,0.00759445,96777.0,96767.0,0.10558648]
[1733440733757,0.00051125,96780.0,96765.0,0.1267]
[1733440733928,0.00051125,96780.0,96766.0,0.0005552]
[1733440734162,0.00051125,96780.0,96767.0,0.10558673]
[1733440734410,0.00051125,96780.0,96768.0,0.1055865]
[1733440734657,0.00051125,96780.0,96765.0,0.1267]
[1733440734800,0.00051125,96780.0,96766.0,0.00055533]
[1733440734979,0.00397405,96780.0,96765.0,0.1267]
[1733440735617,0.00397405,96780.0,96768.0,0.001]
[1733440735846,0.00397405,96780.0,96769.0,0.10558664]
[1733440736936,0.0632,96816.0,96771.0,0.10503154]
[1733440737147,0.0632,96811.0,96772.0,0.00055448]
[1733440737350,0.0632,96804.0,96773.0,0.10503154]
[1733440737556,0.10632287,96810.0,96774.0,0.00055477]
[1733440737557,0.0632,96807.0,96774.0,0.00055477]
[1733440737698,0.00129133,96810.0,96775.0,0.10503154]
[1733440737955,0.0632,96803.0,96776.0,0.00055452]
[1733440738104,0.0632,96796.0,96766.0,0.00055477]
[1733440738312,0.10632287,96802.0,96767.0,0.1055865]
[1733440738789,0.0632,96796.0,96767.0,0.1055865]
[1733440739214,0.0632,96799.0,96767.0,0.1055865]
[1733440739420,0.0632,96801.0,96767.0,0.1055865]
[1733440739567,0.0632,96801.0,96787.0,0.00302395]
[1733440740045,0.0632,96805.0,96787.0,0.00302395]
[1733440740169,0.0632,96801.0,96787.0,0.00302395]
[1733440740653,0.0632,96794.0,96767.0,0.1055865]
[1733440740973,0.0627,96794.0,96784.0,0.00313055]
[1733440741248,0.0627,96782.0,96765.0,0.1267]
[1733440741454,0.15,96819.0,96765.0,0.1267]
[1733440741455,0.0627,96773.0,96765.0,0.1267]
[1733440741680,0.15,96810.0,96764.0,0.10995808]
[1733440741681,0.0627,96768.0,96764.0,0.10995808]
[1733440741905,0.0627,96765.0,96764.0,0.10995808]
[1733440742177,0.19202347,96765.0,96764.0,0.10995808]
[1733440742731,0.16773154,96765.0,96764.0,0.10995808]
[1733440743103,0.0627,96780.0,96764.0,0.10995808]
[1733440743315,0.0627,96771.0,96764.0,0.10995808]
[1733440743654,0.10632326,96779.0,96764.0,0.10995808]
[1733440743655,0.003,96765.0,96764.0,0.10995808]
[1733440743871,0.17073154,96765.0,96764.0,0.10995808]
[1733440744707,0.16773154,96765.0,96764.0,0.10995808]
[1733440745297,0.16773154,96765.0,96764.0,0.10795808]
[1733440745860,0.16973154,96765.0,96764.0,0.10795808]
[1733440746041,0.16973154,96765.0,96764.0,0.098]
[1733440746377,0.16773154,96765.0,96764.0,0.098]
[1733440746599,0.17073154,96765.0,96764.0,0.098]
[1733440747222,0.10503154,96765.0,96764.0,0.098]
[1733440747440,0.10503154,96765.0,96764.0,0.08421875]
[1733440747657,0.10503154,96765.0,96740.0,0.0017256]
[1733440747658,0.023,96764.0,96740.0,0.0017256]
[1733440747784,0.023,96745.0,96740.0,0.0017256]
[1733440747988,0.10576746,96744.0,96740.0,0.0017256]
[1733440748211,0.023,96743.0,96740.0,0.0017256]
[1733440748495,0.10576746,96742.0,96740.0,0.0017256]
[1733440748801,0.10076746,96742.0,96740.0,0.0017256]
[1733440749048,0.023,96740.0,96703.0,0.0485]
[1733440749256,0.10503154,96727.0,96694.0,0.00315406]
[1733440749508,0.02373592,96726.0,96694.0,0.00315406]
[1733440749726,0.10503154,96725.0,96694.0,0.00315406]
[1733440749851,0.00073592,96724.0,96694.0,0.00315406]
[1733440750056,0.10503154,96723.0,96694.0,0.00315406]
[1733440750260,0.00073592,96722.0,96694.0,0.00315406]
[1733440750475,0.10503154,96721.0,96694.0,0.00315406]
[1733440750699,0.00073592,96720.0,96694.0,0.00315406]
[1733440750906,0.10503154,96719.0,96690.0,0.0753]
[1733440751119,0.023,96716.0,96690.0,0.0753]
[1733440751371,0.10576746,96715.0,96690.0,0.0753]
[1733440752042,0.27583057,96757.0,96703.0,0.001]
[1733440752226,0.47616319,96800.0,96703.0,0.001]
[1733440752227,0.10503154,96746.0,96703.0,0.001]
[1733440752433,0.00073592,96745.0,96710.0,0.15]
[1733440752664,0.10503154,96744.0,96710.0,0.15]
[1733440752794,0.00073592,96743.0,96710.0,0.15]
[1733440753024,0.10503154,96742.0,96710.0,0.15]
[1733440753243,0.10576746,96741.0,96704.0,0.00103397]
[1733440753441,0.10503154,96727.0,96682.0,0.10722656]
[1733440753696,0.10503154,96719.0,96666.0,0.10722656]
[1733440753863,0.02373592,96718.0,96673.0,0.10722656]
[1733440754083,0.10503154,96717.0,96673.0,0.10722656]
[1733440754304,0.00073592,96716.0,96673.0,0.10722656]
[1733440754438,0.10503154,96715.0,96678.0,0.10722656]
[1733440754745,0.00073592,96714.0,96687.0,0.00311213]
[1733440754917,0.10503154,96713.0,96687.0,0.00311213]
[1733440755181,0.00073592,96712.0,96710.0,0.001]
[1733440755329,0.10503154,96711.0,96710.0,0.001]
[1733440755531,0.10503154,96711.0,96679.0,0.10722656]
[1733440755733,0.00073592,96710.0,96679.0,0.10722656]
[1733440756022,0.10503154,96709.0,96687.0,0.001]
[1733440756426,0.00073592,96708.0,96688.0,0.10722656]
[1733440756554,0.00073592,96743.0,96688.0,0.10722656]
[1733440756759,0.10503154,96725.0,96689.0,0.1238]
[1733440756965,0.00073592,96724.0,96689.0,0.1238]
[1733440757165,0.10503154,96723.0,96689.0,0.1238]
[1733440757400,0.00073592,96722.0,96689.0,0.1238]
[1733440757599,0.023,96720.0,96689.0,0.1238]
[1733440757957,0.04277344,96731.0,96689.0,0.1238]
[1733440757958,0.023,96718.0,96689.0,0.1238]
[1733440758144,0.10576746,96717.0,96689.0,0.1238]
[1733440759500,0.023,96716.0,96689.0,0.1238]
[1733440759712,0.10576746,96715.0,96689.0,0.1238]
[1733440760041,0.10576746,96715.0,96632.0,0.15]
[1733440760042,0.10503154,96699.0,96667.0,0.10722656]
[1733440760194,0.10503154,96714.0,96686.0,0.10722656]
[1733440760335,0.00073592,96713.0,96679.0,0.10722656]
[1733440760537,0.10503154,96712.0,96680.0,0.0017262]
[1733440760753,0.00073592,96711.0,96680.0,0.0017262]
[1733440761075,0.10503154,96710.0,96680.0,0.0017262]
[1733440761339,0.10576746,96709.0,96680.0,0.0017262]
[1733440761558,0.023,96708.0,96680.0,0.0017262]
[1733440761721,0.10576746,96707.0,96680.0,0.0017262]
[1733440762732,0.13746101,96717.0,96680.0,0.0017262]
[1733440762733,0.09164067,96717.0,96687.0,0.10722656]
[1733440762934,0.00073592,96716.0,96688.0,0.10606561]
[1733440763193,0.00073592,96716.0,96681.0,0.1283]
[1733440763194,0.10503154,96716.0,96681.0,0.1283]
[1733440763337,0.001,96707.0,96681.0,0.1283]
[1733440763654,0.001,96707.0,96675.0,0.00311676]
[1733440763655,0.10576746,96706.0,96675.0,0.00311676]
[1733440764316,0.18311986,96728.0,96675.0,0.00311676]
[1733440764317,0.08450681,96722.0,96675.0,0.1081483]
[1733440764493,0.18311986,96772.0,96729.0,0.15]
[1733440764719,0.18311986,96806.0,96729.0,0.25606498]
[1733440764864,0.0751,96809.0,96729.0,0.25503154]
[1733440765322,0.0751,96809.0,96749.0,0.15]
[1733440765510,0.10503154,96796.0,96751.0,0.15]
[1733440766841,0.10090954,96796.0,96751.0,0.15]
[1733440767027,0.10090954,96796.0,96751.0,0.151]
[1733440768461,0.10090954,96796.0,96751.0,0.15]
[1733440768587,0.10090954,96796.0,96751.0,0.001]
[1733440768588,0.023,96795.0,96751.0,0.001]
[1733440768798,0.10503154,96794.0,96751.0,0.001]
[1733440768930,0.10503154,96791.0,96745.0,0.15]
[1733440769134,0.023,96790.0,96745.0,0.15]
[1733440769349,0.10503154,96777.0,96734.0,0.0484]
[1733440769549,0.023,96776.0,96731.0,0.15]
[1733440769854,0.10503154,96775.0,96751.0,0.001]
[1733440770617,0.0751,96809.0,96751.0,0.151]
[1733440770814,0.10503154,96799.0,96761.0,0.15]
[1733440771019,0.10503154,96799.0,96762.0,0.00103332]
[1733440771303,0.10503154,96799.0,96761.0,0.15]
[1733440772588,0.10503154,96799.0,96761.0,0.148]
[1733440772926,0.10503154,96799.0,96731.0,0.001]
[1733440772927,0.0081866,96820.0,96775.0,0.148]
[1733440773154,0.0081866,96820.0,96778.0,0.148]
[1733440773361,0.0081866,96820.0,96779.0,0.00103313]
[1733440774000,0.0081866,96820.0,96778.0,0.148]
[1733440775840,0.0081866,96820.0,96782.0,0.148]
[1733440776035,0.0081866,96820.0,96779.0,0.10606467]
[1733440776036,0.0081866,96820.0,96783.0,0.00103296]
[1733440776245,0.0081866,96820.0,96791.0,0.148]
[1733440776927,0.0081866,96820.0,96799.0,0.148]
[1733440777144,0.0081866,96820.0,96793.0,0.148]
[1733440777812,0.0081866,96820.0,96788.0,0.148]
[1733440777991,0.0081866,96820.0,96789.0,0.148]
[1733440778188,0.0081866,96820.0,96786.0,0.0031674]
[1733440778395,0.0081866,96820.0,96793.0,0.148]
[1733440779329,0.10503154,96799.0,96788.0,0.001]
[1733440779531,0.10503154,96799.0,96733.0,0.05103987]
[1733440779532,0.023,96797.0,96759.0,0.008187]
[1733440779868,0.023,96795.0,96793.0,0.001]
[1733440780051,0.1294,96811.0,96793.0,0.001]
[1733440780052,0.10503154,96794.0,96793.0,0.001]
[1733440780322,0.1294,96811.0,96793.0,0.001]
[1733440780509,0.10503154,96799.0,96793.0,0.001]
[1733440781062,0.0498,96811.0,96775.0,0.148]
[1733440781257,0.0081866,96820.0,96776.0,0.00103318]
[1733440781515,0.0081866,96820.0,96775.0,0.148]
[1733440781516,0.0081866,96820.0,96777.0,0.00103318]
[1733440781664,0.0081866,96820.0,96775.0,0.148]
[1733440782107,0.0081866,96820.0,96776.0,0.00103318]
[1733440782275,0.0081866,96820.0,96775.0,0.148]
[1733440782276,0.0081866,96820.0,96775.0,0.149]
[1733440782628,0.0081866,96820.0,96775.0,0.001]
[1733440782804,0.0081866,96820.0,96775.0,0.1589925]
[1733440782936,0.0081866,96820.0,96775.0,0.148]
[1733440783541,0.0081866,96820.0,96771.0,0.148]
[1733440783748,0.0081866,96820.0,96775.0,0.148]
[1733440784206,0.10503154,96799.0,96776.0,0.001]
[1733440784766,0.10503154,96799.0,96771.0,0.148]
[1733440784999,0.10503154,96799.0,96775.0,0.001]
[1733440785587,0.10503154,96799.0,96780.0,0.00308826]
[1733440786196,0.10503154,96797.0,96776.0,0.001]
[1733440786420,0.15163154,96792.0,96776.0,0.001]
[1733440786614,0.10503154,96777.0,96776.0,0.001]
[1733440786810,0.12803154,96777.0,96776.0,0.001]
[1733440787378,0.023,96776.0,96760.0,0.0017252]
[1733440787576,0.10503154,96775.0,96761.0,0.00989732]
[1733440787792,0.10503154,96775.0,96760.0,0.0017252]
[1733440788220,0.10503154,96773.0,96760.0,0.0017252]
[1733440788441,0.023,96772.0,96760.0,0.0017252]
[1733440788668,0.10503154,96771.0,96760.0,0.0017252]
[1733440788878,0.10503154,96771.0,96760.0,0.01188903]
[1733440789084,0.10503154,96771.0,96760.0,0.0017252]
[1733440790829,0.09147342,96808.0,96761.0,0.148]
[1733440791066,0.00041916,96814.0,96776.0,0.148]
[1733440791277,0.00041916,96814.0,96780.0,0.148]
[1733440791477,0.00128386,96830.0,96781.0,0.00103313]
[1733440791904,0.00128386,96830.0,96780.0,0.148]
[1733440792134,0.00128386,96830.0,96781.0,0.00103313]
[1733440792345,0.00128386,96830.0,96787.0,0.148]
[1733440792644,0.0008647,96830.0,96777.0,0.148]
[1733440792796,0.0028647,96830.0,96769.0,0.148]
[1733440793008,0.0028647,96830.0,96770.0,0.25303154]
[1733440793440,0.10503154,96799.0,96764.0,0.12697779]
[1733440793631,0.10503154,96799.0,96764.0,0.08157779]
[1733440793839,0.11562095,96799.0,96781.0,0.001]
[1733440794045,0.10503154,96799.0,96781.0,0.001]
[1733440794465,0.10003154,96799.0,96764.0,0.00307779]
[1733440794667,0.10003154,96799.0,96764.0,0.0139903]
[1733440794875,0.10003154,96799.0,96764.0,0.00407779]
[1733440795342,0.10503154,96796.0,96760.0,0.01183184]
[1733440795554,0.10503154,96783.0,96760.0,0.01183184]
[1733440797066,0.10503154,96783.0,96764.0,0.001]
[1733440797507,0.10503154,96783.0,96760.0,0.01183184]
[1733440797731,0.10503154,96783.0,96760.0,0.0017252]
[1733440797910,0.10503154,96781.0,96760.0,0.0017252]
[1733440799166,0.00041916,96819.0,96772.0,0.2265]
[1733440799377,0.00041916,96819.0,96778.0,0.148]
[1733440800031,0.00041916,96819.0,96776.0,0.148]
[1733440800293,0.10503154,96799.0,96772.0,0.0785]
[1733440800869,0.10503154,96799.0,96778.0,0.001]
[1733440801524,0.10503154,96799.0,96763.0,0.00305909]
[1733440801525,0.03205608,96798.0,96763.0,0.00305909]
[1733440801735,0.10503154,96797.0,96763.0,0.00305909]
[1733440801987,0.10503154,96797.0,96771.0,0.148]
[1733440802189,0.03205818,96796.0,96779.0,0.148]
[1733440802416,0.03205818,96796.0,96772.0,0.00203323]
[1733440802417,0.0465115,96820.0,96778.0,0.148]
[1733440802625,0.0465115,96820.0,96775.0,0.148]
[1733440802626,0.13708786,96819.0,96775.0,0.148]
[1733440802859,0.13708786,96818.0,96775.0,0.148]
[1733440803093,0.13708786,96817.0,96772.0,0.149]
[1733440803290,0.0465115,96820.0,96772.0,0.149]
[1733440803291,0.13708786,96816.0,96772.0,0.149]
[1733440803503,0.10503154,96813.0,96772.0,0.148]
[1733440803729,0.10503154,96806.0,96765.0,0.148]
[1733440803924,0.03205632,96805.0,96765.0,0.148]
[1733440804272,0.10503154,96804.0,96780.0,0.148]
[1733440804501,0.10503154,96804.0,96781.0,0.148]
[1733440805463,0.10503154,96804.0,96780.0,0.001]
[1733440806840,0.0471,96822.0,96784.0,0.148]
[1733440807041,0.13709099,96821.0,96788.0,0.148]
[1733440807234,0.03205945,96820.0,96788.0,0.148]
[1733440807396,0.10503154,96819.0,96788.0,0.148]
[1733440807615,0.10503154,96814.0,96779.0,0.0031486]
[1733440807820,0.10503154,96810.0,96780.0,0.001]
[1733440808025,0.10503154,96800.0,96780.0,0.001]
[1733440808447,0.13709099,96799.0,96773.0,0.01030153]
[1733440808587,0.03205945,96798.0,96760.0,0.1497252]
[1733440808795,0.10503154,96797.0,96760.0,0.1497252]
[1733440809014,0.03205945,96796.0,96770.0,0.0017242]
[1733440809251,0.10503154,96795.0,96770.0,0.0017242]
[1733440809499,0.09164391,96804.0,96773.0,0.148]
[1733440809667,0.13709383,96803.0,96778.0,0.148]
[1733440809870,0.13709383,96803.0,96776.0,0.148]
[1733440810015,0.001,96800.0,96776.0,0.148]
[1733440810235,0.09215951,96797.0,96770.0,0.1497242]
[1733440810449,0.10503154,96796.0,96770.0,0.1497242]
[1733440810656,0.09215951,96785.0,96770.0,0.0017242]
[1733440810878,0.09215951,96783.0,96778.0,0.001]
[1733440811042,0.10503154,96782.0,96778.0,0.001]
[1733440811493,0.13823927,96779.0,96770.0,0.0017242]
[1733440811704,0.09236479,96773.0,96770.0,0.0027242]
[1733440811860,0.09236479,96771.0,96770.0,0.0027242]
[1733440812061,0.33543033,96771.0,96770.0,0.0027242]
[1733440812290,0.44596057,96771.0,96770.0,0.0027242]